fUSD/lending_fUSD_20250107
["ID","MTS","AMOUNT","RATE_DAILY","PERIOD"]
[347976558,1736257879959,-500.0,0.00010521,2]
[347976559,1736257879992,-500.0,0.00010521,2]
[347976560,1736257880025,-731.15,0.00010521,2]
[347976561,1736257880059,-513.44,0.00010521,2]
[347976562,1736257880091,-720.12,0.00010521,2]
[347976563,1736257880124,-829.99,0.00010521,2]
[347976564,1736257880157,-515.8,0.00010521,2]
[347976565,1736257880190,-6098.89,0.00010521,2]
[347976566,1736257880222,-500.0,0.00010521,2]
[347976567,1736257880254,-590.77,0.00010521,2]
[347976568,1736257880285,-500.0,0.00010521,2]
[347976569,1736257880316,-763.48,0.00010521,2]
[347976570,1736257880348,-500.0,0.00010521,2]
[347976571,1736257880381,-500.0,0.00010521,2]
[347976572,1736257880414,-652.55,0.00010521,2]
[347976573,1736257880447,-1412.62,0.00010521,2]
[347976574,1736257880479,-500.0,0.00010521,2]
[347976575,1736257880511,-500.0,0.00010521,2]
[347976576,1736257880542,-500.0,0.00010521,2]
[347976577,1736257880574,-613.46,0.00010521,2]
[347976578,1736257880607,-500.0,0.00010521,2]
[347976579,1736257880638,-151.0,0.00010521,2]
[347976580,1736257880672,-887.93,0.00010521,2]
[347976581,1736257880705,-151.0,0.00010521,2]
[347976582,1736257880745,-923.0,0.00010521,2]
[347976583,1736257880779,-534.58,0.00010521,2]
[347976584,1736257880817,-564.45,0.00010521,2]
[347976585,1736257880855,-500.0,0.00010521,2]
[347976586,1736257880893,-500.0,0.00010521,2]
[347976587,1736257880926,-1093.4,0.00010521,2]
[347976588,1736257880958,-1383.15,0.00010521,2]
[347976589,1736257880992,-500.0,0.00010521,2]
[347976590,1736257881025,-543.31,0.00010521,2]
[347976591,1736257881061,-583.77,0.00010546,2]
[347976592,1736257881096,-1933.27,0.00010547,2]
[347976593,1736257881129,-6598.82,0.00010547,2]
[347976594,1736257881164,-2259.29,0.00010547,2]
[347976595,1736257881197,-3684.69,0.00010547,2]
[347976596,1736257881229,-1846.69,0.00010547,2]
[347976597,1736257881262,-4422.37,0.00010547,2]
[347976598,1736257881294,-2228.31,0.00010547,2]
[347976599,1736257881326,-1344.8,0.00010547,2]
[347976600,1736257881361,-952.81,0.00010547,2]
[347976601,1736257881396,-1259.9,0.00010547,2]
[347976602,1736257881432,-3637.15,0.00010547,2]
[347976603,1736257881467,-500.0,0.00010547,2]
[347976604,1736257881504,-1754.91,0.00010547,2]
[347976605,1736257881538,-931.5,0.00010547,2]
[347976606,1736257881573,-426.97263627,0.00010567,2]
[347976607,1736257881607,-151.0,0.00010589,2]
[347976608,1736257881642,-151.0,0.00010589,2]
[347976609,1736257881678,-660.45,0.00010589,2]
[347976610,1736257881712,-513.68,0.00010589,2]
[347976611,1736257881752,-500.0,0.00010589,2]
[347976612,1736257881786,-655.8,0.00010589,2]
[347976613,1736257881820,-592.63,0.00010589,2]
[347976614,1736257881854,-1314.41,0.00010589,2]
[347976615,1736257881889,-1202.24,0.00010589,2]
[347976616,1736257881923,-1530.77,0.00010589,2]
[347976617,1736257881955,-1723.87,0.00010589,2]
[347976618,1736257881988,-500.0,0.00010589,2]
[347976619,1736257882022,-519.92,0.00010589,2]
[347976620,1736257882060,-775.43,0.00010589,2]
[347976621,1736257882100,-591.46,0.00010589,2]
[347976622,1736257882136,-500.0,0.00010589,2]
[347976623,1736257882173,-500.0,0.00010589,2]
[347976624,1736257882204,-500.0,0.00010589,2]
[347976625,1736257882235,-755.72,0.00010589,2]
[347976626,1736257882266,-500.0,0.00010589,2]
[347976627,1736257882298,-598.07,0.00010589,2]
[347976628,1736257882330,-776.21,0.00010589,2]
[347976629,1736257882364,-1283.6,0.00010589,2]
[347976630,1736257882396,-848.62,0.00010589,2]
[347976631,1736257882428,-645.0,0.00010589,2]
[347976632,1736257882461,-565.22,0.00010589,2]
[347976633,1736257882495,-1964.44,0.00010589,2]
[347976634,1736257882760,-962.79,0.00010589,2]
[347976635,1736257882812,-3765.98,0.00010589,2]
[347976636,1736257882847,-718.49,0.00010589,2]
[347976637,1736257882881,-500.0,0.00010589,2]
[347976638,1736257882914,-988.17,0.00010589,2]
[347976639,1736257882946,-500.0,0.00010589,2]
[347976640,1736257882988,-1240.93,0.00010589,2]
[347976641,1736257883029,-1520.46,0.00010589,2]
[347976642,1736257883062,-897.47,0.00010589,2]
[347976643,1736257883096,-841.45,0.00010589,2]
[347976644,1736257883131,-1329.71,0.00010589,2]
[347976645,1736257883166,-877.15,0.00010589,2]
[347976646,1736257883200,-591.57,0.00010589,2]
[347976647,1736257883233,-856.48,0.00010589,2]
[347976648,1736257883264,-2649.4,0.00010589,2]
[347976649,1736257883295,-566.25,0.00010589,2]
[347976650,1736257883328,-2496.25,0.00010589,2]
[347976651,1736257883360,-1440.19,0.00010589,2]
[347976652,1736257883393,-945.93,0.00010589,2]
[347976653,1736257883425,-151.0,0.0001059,2]
[347976654,1736257883457,-151.0,0.0001059,2]
[347976655,1736257883488,-312.5164259,0.0001059,2]
[347976656,1736257883520,-500.0,0.0001059,2]
[347976657,1736257883552,-281.49865655,0.0001059,2]
[347976658,1736257883584,-574.83,0.0001059,2]
[347976659,1736257883617,-500.0,0.0001059,2]
[347976660,1736257883649,-500.0,0.0001059,2]
[347976661,1736257883680,-500.0,0.0001059,2]
[347976662,1736257883711,-500.0,0.0001059,2]
[347976663,1736257883745,-500.0,0.0001059,2]
[347976664,1736257883777,-500.0,0.0001059,2]
[347976665,1736257883809,-574.83,0.0001059,2]
[347976666,1736257883840,-500.0,0.0001059,2]
[347976667,1736257883872,-500.0,0.0001059,2]
[347976668,1736257883903,-500.0,0.0001059,2]
[347976669,1736257883935,-506.87,0.0001059,2]
[347976670,1736257883971,-500.0,0.0001059,2]
[347976671,1736257884009,-500.0,0.0001059,2]
[347976672,1736257884046,-500.0,0.0001059,2]
[347976673,1736257884084,-500.0,0.0001059,2]
[347976674,1736257884124,-500.0,0.0001059,2]
[347976675,1736257884159,-642.24,0.0001059,2]
[347976676,1736257884191,-500.0,0.0001059,2]
[347976677,1736257884224,-536.56,0.0001059,2]
[347976678,1736257884257,-500.0,0.0001059,2]
[347976679,1736257884289,-500.0,0.0001059,2]
[347976680,1736257884319,-500.0,0.0001059,2]
[347976681,1736257884356,-531.27,0.0001059,2]
[347976682,1736257884390,-500.0,0.0001059,2]
[347976683,1736257884423,-500.0,0.0001059,2]
[347976684,1736257884457,-500.0,0.0001059,2]
[347976685,1736257884489,-534.69,0.0001059,2]
[347976686,1736257884521,-500.0,0.0001059,2]
[347976687,1736257884553,-500.0,0.0001059,2]
[347976688,1736257884591,-154.6219113,0.0001059,2]
[347976689,1736257884635,-521.29,0.0001059,2]
[347976690,1736257884674,-500.0,0.0001059,2]
[347976691,1736257884710,-500.0,0.0001059,2]
[347976692,1736257884750,-500.0,0.0001059,2]
[347976694,1736257884786,-1354.33,0.0001059,2]
[347976695,1736257884819,-500.0,0.0001059,2]
[347976696,1736257884855,-530.31,0.0001059,2]
[347976697,1736257884892,-525.81,0.0001059,2]
[347976698,1736257884931,-518.26,0.0001059,2]
[347976699,1736257884970,-872.09,0.0001059,2]
[347976700,1736257885013,-517.43,0.0001059,2]
[347976701,1736257885051,-500.0,0.0001059,2]
[347976702,1736257885092,-505.13729647,0.0001059,2]
[347976703,1736257885133,-500.0,0.0001059,2]
[347976704,1736257885174,-547.01,0.0001059,2]
[347976705,1736257885212,-500.0,0.0001059,2]
[347976706,1736257885251,-500.0,0.0001059,2]
[347976707,1736257885287,-500.0,0.0001059,2]
[347976708,1736257885323,-500.0,0.0001059,2]
[347976709,1736257885360,-1117.84,0.0001059,2]
[347976710,1736257885399,-539.06,0.0001059,2]
[347976711,1736257885432,-500.0,0.0001059,2]
[347976712,1736257885464,-537.39,0.0001059,2]
[347976713,1736257885496,-500.0,0.0001059,2]
[347976714,1736257885528,-500.0,0.0001059,2]
[347976715,1736257885559,-537.39,0.0001059,2]
[347976716,1736257885590,-533.46898388,0.0001059,2]
[347976717,1736257885624,-500.0,0.0001059,2]
[347976718,1736257885655,-500.0,0.0001059,2]
[347976719,1736257885686,-804.98,0.0001059,2]
[347976720,1736257885717,-500.0,0.0001059,2]
[347976721,1736257885751,-500.0,0.0001059,2]
[347976722,1736257885784,-500.0,0.0001059,2]
[347976723,1736257885817,-500.0,0.0001059,2]
[347976724,1736257885849,-500.0,0.0001059,2]
[347976725,1736257885880,-500.0,0.0001059,2]
[347976726,1736257885914,-500.0,0.0001059,2]
[347976727,1736257885950,-521.67,0.0001059,2]
[347976728,1736257885987,-500.0,0.0001059,2]
[347976729,1736257886018,-500.0,0.0001059,2]
[347976730,1736257886051,-516.84,0.0001059,2]
[347976731,1736257886083,-500.0,0.0001059,2]
[347976732,1736257886116,-500.0,0.0001059,2]
[347976733,1736257886148,-500.0,0.0001059,2]
[347976734,1736257886181,-500.0,0.0001059,2]
[347976735,1736257886211,-500.0,0.0001059,2]
[347976736,1736257886242,-558.77,0.0001059,2]
[347976737,1736257886275,-500.0,0.0001059,2]
[347976738,1736257886307,-514.11,0.0001059,2]
[347976739,1736257886339,-500.0,0.0001059,2]
[347976740,1736257886379,-538.54,0.0001059,2]
[347976741,1736257886475,-500.0,0.0001059,2]
[347976742,1736257886510,-500.0,0.0001059,2]
[347976743,1736257886545,-500.0,0.0001059,2]
[347976744,1736257886578,-500.0,0.0001059,2]
[347976745,1736257886612,-500.0,0.0001059,2]
[347976746,1736257886645,-500.0,0.0001059,2]
[347976747,1736257886678,-500.0,0.0001059,2]
[347976748,1736257886711,-500.0,0.0001059,2]
[347976749,1736257886746,-627.81,0.0001059,2]
[347976750,1736257886778,-500.0,0.0001059,2]
[347976751,1736257886809,-500.0,0.0001059,2]
[347976752,1736257886840,-500.0,0.0001059,2]
[347976753,1736257886872,-500.0,0.0001059,2]
[347976754,1736257886903,-661.67,0.0001059,2]
[347976755,1736257886933,-500.0,0.0001059,2]
[347976756,1736257886964,-500.0,0.0001059,2]
[347976757,1736257886994,-534.41,0.0001059,2]
[347976758,1736257887028,-933.95,0.0001059,2]
[347976759,1736257887063,-692.45,0.00010591,2]
[347976760,1736257887097,-1437.88,0.00010591,2]
[347976761,1736257887132,-870.49,0.00010591,2]
[347976762,1736257887165,-3316.03,0.00010591,2]
[347976763,1736257887199,-3906.11,0.00010591,2]
[347976764,1736257887233,-1991.91,0.00010591,2]
[347976765,1736257887267,-1684.03,0.00010591,2]
[347976766,1736257887301,-1012.76,0.00010591,2]
[347976767,1736257887334,-5511.6,0.00010591,2]
[347976768,1736257887370,-3077.93,0.00010591,2]
[347976769,1736257887403,-3222.16,0.00010591,2]
[347976770,1736257887437,-14899.67,0.00010591,2]
[347976771,1736257887476,-500.0,0.00010591,2]
[347976772,1736257887514,-1657.04,0.00010592,2]
[347976773,1736257887553,-1042.99,0.00010592,2]
[347976774,1736257887588,-2183.4,0.00010592,2]
[347976775,1736257887622,-500.0,0.00010592,2]
[347976776,1736257887654,-1262.12,0.00010592,2]
[347976777,1736257887686,-1567.46,0.00010592,2]
[347976778,1736257887721,-923.13,0.00010592,2]
[347976779,1736257887758,-3310.73,0.00010592,2]
[347976780,1736257887791,-2640.22,0.00010592,2]
[347976781,1736257887823,-151.0,0.00010594,2]
[347976782,1736257887859,-251.16384214,0.00010624,2]
[347976783,1736257887891,-583.77,0.00010683,2]
[347976784,1736257887923,-1000.67,0.00010709,2]
[347976785,1736257887956,-251.16384214,0.00010728,2]
[347976786,1736257887990,-19163.54861488,0.0001078,2]
[347976787,1736257888023,-191.73965121,0.0001078,2]
[347976788,1736257888054,-1093.57741148,0.0001078,2]
[347976789,1736257888090,-500.0,0.00010794,2]
[347976790,1736257888121,-663.09,0.00010794,2]
[347976791,1736257888153,-500.0,0.00010794,2]
[347976792,1736257888184,-500.0,0.00010794,2]
[347976793,1736257888216,-538.05,0.00010794,2]
[347976794,1736257888249,-539.06,0.00010794,2]
[347976795,1736257888282,-500.0,0.00010794,2]
[347976796,1736257888313,-516.31,0.00010794,2]
[347976797,1736257888346,-500.0,0.00010794,2]
[347976798,1736257888380,-479.16,0.00010794,2]
[347976799,1736257888413,-575.66,0.00010794,2]
[347976800,1736257888445,-500.0,0.00010794,2]
[347976801,1736257888477,-500.0,0.00010794,2]
[347976802,1736257888507,-500.0,0.00010794,2]
[347976803,1736257888538,-500.0,0.00010794,2]
[347976804,1736257888569,-672.1,0.00010794,2]
[347976805,1736257888601,-500.0,0.00010794,2]
[347976806,1736257888632,-500.0,0.00010794,2]
[347976807,1736257888662,-515.14,0.00010794,2]
[347976808,1736257888693,-574.83,0.00010794,2]
[347976809,1736257888724,-553.83,0.00010794,2]
[347976810,1736257888757,-629.07,0.00010794,2]
[347976811,1736257888788,-610.58,0.00010794,2]
[347976812,1736257888820,-500.0,0.00010794,2]
[347976813,1736257888851,-2287.44,0.00010794,2]
[347976814,1736257888881,-500.0,0.00010794,2]
[347976815,1736257888912,-1440.5,0.00010794,2]
[347976816,1736257888943,-1687.68,0.00010794,2]
[347976817,1736257888974,-1024.01,0.00010794,2]
[347976818,1736257889013,-1720.02,0.00010794,2]
[347976819,1736257889046,-851.99,0.00010794,2]
[347976820,1736257889079,-903.79,0.00010794,2]
[347976821,1736257889110,-550.11,0.00010794,2]
[347976822,1736257889143,-500.0,0.00010794,2]
[347976823,1736257889176,-500.0,0.00010794,2]
[347976824,1736257889208,-500.0,0.00010794,2]
[347976825,1736257889242,-1643.01,0.00010794,2]
[347976826,1736257889276,-500.0,0.00010794,2]
[347976827,1736257889308,-500.0,0.00010794,2]
[347976828,1736257889340,-639.04,0.00010794,2]
[347976829,1736257889374,-500.0,0.00010794,2]
[347976830,1736257889407,-500.0,0.00010794,2]
[347976831,1736257889440,-500.0,0.00010794,2]
[347976832,1736257889474,-1964.96,0.00010794,2]
[347976833,1736257889507,-500.0,0.00010794,2]
[347976834,1736257889540,-1896.73,0.00010794,2]
[347976835,1736257889574,-500.0,0.00010794,2]
[347976836,1736257889607,-500.0,0.00010794,2]
[347976837,1736257889641,-500.0,0.00010794,2]
[347976838,1736257889675,-500.0,0.00010794,2]
[347976839,1736257889712,-977.17,0.00010794,2]
[347976840,1736257889752,-2741.49,0.00010794,2]
[347976841,1736257889787,-500.0,0.00010794,2]
[347976842,1736257889822,-500.0,0.00010794,2]
[347976843,1736257889857,-2012.97,0.00010794,2]
[347976844,1736257889894,-574.03,0.00010794,2]
[347976845,1736257889931,-2070.71,0.00010794,2]
[347976846,1736257889966,-500.0,0.00010794,2]
[347976847,1736257890006,-500.0,0.00010794,2]
[347976848,1736257890043,-737.54,0.00010794,2]
[347976849,1736257890081,-500.0,0.00010794,2]
[347976850,1736257890116,-500.0,0.00010794,2]
[347976851,1736257890153,-500.0,0.00010794,2]
[347976852,1736257890189,-524.89,0.00010794,2]
[347976853,1736257890223,-1724.58,0.00010794,2]
[347976854,1736257890258,-500.0,0.00010794,2]
[347976855,1736257890293,-500.0,0.00010794,2]
[347976856,1736257890327,-956.02,0.00010794,2]
[347976857,1736257890360,-2305.42,0.00010794,2]
[347976858,1736257890396,-525.73,0.00010794,2]
[347976859,1736257890431,-638.0,0.00010794,2]
[347976860,1736257890466,-587.3,0.00010794,2]
[347976861,1736257890502,-571.13,0.00010794,2]
[347976862,1736257890538,-1355.79,0.00010794,2]
[347976863,1736257890572,-1031.47,0.00010794,2]
[347976864,1736257890607,-4114.69,0.00010794,2]
[347976865,1736257890641,-500.0,0.00010794,2]
[347976866,1736257890676,-632.86,0.00010794,2]
[347976867,1736257890713,-518.93,0.00010794,2]
[347976868,1736257890750,-500.0,0.00010794,2]
[347976869,1736257890785,-1009.19,0.00010794,2]
[347976870,1736257890818,-1000.9,0.00010794,2]
[347976871,1736257890850,-2288.69,0.00010794,2]
[347976872,1736257890883,-500.0,0.00010794,2]
[347976873,1736257890915,-791.75,0.00010794,2]
[347976874,1736257890946,-663.46,0.00010794,2]
[347976875,1736257890978,-500.0,0.00010794,2]
[347976876,1736257891015,-500.0,0.00010794,2]
[347976877,1736257891048,-1840.35,0.00010794,2]
[347976878,1736257891080,-2352.55,0.00010794,2]
[347976879,1736257891112,-500.0,0.00010794,2]
[347976880,1736257891144,-500.0,0.00010794,2]
[347976881,1736257891176,-500.0,0.00010794,2]
[347976882,1736257891208,-500.0,0.00010794,2]
[347976883,1736257891239,-914.56,0.00010794,2]
[347976884,1736257891271,-524.26,0.00010794,2]
[347976885,1736257891301,-500.0,0.00010794,2]
[347976886,1736257891333,-626.29,0.00010794,2]
[347976887,1736257891364,-500.0,0.00010794,2]
[347976888,1736257891398,-1717.4,0.00010794,2]
[347976889,1736257891431,-500.0,0.00010794,2]
[347976890,1736257891464,-685.03,0.00010794,2]
[347976891,1736257891498,-500.0,0.00010794,2]
[347976892,1736257891532,-500.0,0.00010794,2]
[347976893,1736257891564,-550.11,0.00010794,2]
[347976894,1736257891597,-500.0,0.00010794,2]
[347976895,1736257891630,-525.45,0.00010794,2]
[347976896,1736257891663,-500.0,0.00010794,2]
[347976897,1736257891695,-500.0,0.00010794,2]
[347976898,1736257891728,-2384.71,0.00010794,2]
[347976899,1736257891761,-840.39,0.00010794,2]
[347976900,1736257891794,-838.78,0.00010794,2]
[347976901,1736257891826,-533.53,0.00010794,2]
[347976902,1736257891859,-515.13,0.00010794,2]
[347976903,1736257891891,-500.0,0.00010794,2]
[347976904,1736257891924,-500.0,0.00010794,2]
[347976905,1736257891958,-1787.79,0.00010794,2]
[347976906,1736257891992,-500.0,0.00010794,2]
[347976907,1736257892025,-531.78,0.00010794,2]
[347976908,1736257892057,-567.94,0.00010794,2]
[347976909,1736257892091,-500.0,0.00010794,2]
[347976910,1736257892123,-500.0,0.00010794,2]
[347976911,1736257892158,-500.0,0.00010794,2]
[347976912,1736257892192,-2251.89,0.00010794,2]
[347976913,1736257892225,-500.0,0.00010794,2]
[347976914,1736257892257,-500.0,0.00010794,2]
[347976915,1736257892289,-500.0,0.00010794,2]
[347976916,1736257892321,-500.0,0.00010794,2]
[347976917,1736257892354,-630.06,0.00010794,2]
[347976918,1736257892389,-1464.02,0.00010794,2]
[347976919,1736257892421,-500.0,0.00010794,2]
[347976920,1736257892454,-500.0,0.00010794,2]
[347976921,1736257892486,-500.0,0.00010794,2]
[347976922,1736257892518,-500.0,0.00010794,2]
[347976923,1736257892550,-751.18,0.00010794,2]
[347976924,1736257892582,-500.0,0.00010794,2]
[347976925,1736257892615,-7102.62,0.00010794,2]
[347976926,1736257892647,-2682.01,0.00010794,2]
[347976927,1736257892679,-500.0,0.00010794,2]
[347976928,1736257892714,-3981.04,0.00010794,2]
[347976929,1736257892750,-500.0,0.00010794,2]
[347976930,1736257892783,-500.0,0.00010794,2]
[347976931,1736257892815,-500.0,0.00010794,2]
[347976932,1736257892850,-1113.93,0.00010794,2]
[347976933,1736257892887,-3261.92,0.00010794,2]
[347976934,1736257892920,-549.07,0.00010794,2]
[347976935,1736257892952,-500.0,0.00010794,2]
[347976936,1736257892989,-197.27710209,0.00010794,2]
[347976937,1736257893255,-500.0,0.00010794,2]
[347976938,1736257893291,-18202.93,0.00010794,2]
[347976939,1736257893327,-500.0,0.00010794,2]
[347976940,1736257893367,-500.0,0.00010794,2]
[347976941,1736257893404,-500.0,0.00010794,2]
[347976942,1736257893439,-500.0,0.00010794,2]
[347976943,1736257893473,-500.0,0.00010794,2]
[347976944,1736257893509,-500.0,0.00010794,2]
[347976945,1736257893541,-760.62,0.00010794,2]
[347976946,1736257893575,-500.0,0.00010794,2]
[347976947,1736257893610,-500.0,0.00010794,2]
[347976948,1736257893645,-6621.17,0.00010794,2]
[347976949,1736257893678,-500.0,0.00010794,2]
[347976950,1736257893712,-2069.49,0.00010794,2]
[347976951,1736257893745,-500.0,0.00010794,2]
[347976952,1736257893779,-521.11832806,0.00010794,2]
[347976953,1736257893814,-657.74,0.00010794,2]
[347976954,1736257893847,-500.0,0.00010794,2]
[347976955,1736257893885,-1548.37,0.00010794,2]
[347976956,1736257893919,-500.0,0.00010794,2]
[347976957,1736257893952,-2780.33,0.00010794,2]
[347976958,1736257893990,-6160.88,0.00010794,2]
[347976959,1736257894027,-586.91,0.00010794,2]
[347976960,1736257894062,-500.0,0.00010794,2]
[347976961,1736257894098,-500.0,0.00010794,2]
[347976962,1736257894133,-1852.42,0.00010794,2]
[347976963,1736257894168,-500.0,0.00010794,2]
[347976964,1736257894202,-500.0,0.00010794,2]
[347976965,1736257894237,-2224.31,0.00010794,2]
[347976966,1736257894272,-3765.66,0.00010794,2]
[347976967,1736257894306,-500.0,0.00010794,2]
[347976968,1736257894341,-10054.67,0.00010794,2]
[347976969,1736257894376,-1825.82,0.00010794,2]
[347976970,1736257894412,-500.0,0.00010794,2]
[347976971,1736257894447,-5948.66,0.00010794,2]
[347976972,1736257894483,-513.44,0.00010794,2]
[347976973,1736257894514,-500.0,0.00010794,2]
[347976974,1736257894547,-2002.3,0.00010794,2]
[347976975,1736257894583,-4993.44,0.00010794,2]
[347976976,1736257894617,-770.89,0.00010794,2]
[347976977,1736257894652,-151.0,0.00010794,2]
[347976978,1736257894687,-540.35,0.00010794,2]
[347976979,1736257894726,-1607.99,0.00010794,2]
[347976980,1736257894762,-2347.54,0.00010794,2]
[347976981,1736257894797,-151.0,0.00010794,2]
[347976982,1736257894832,-500.0,0.00010794,2]
[347976983,1736257894867,-515.8,0.00010794,2]
[347976984,1736257894905,-2416.99,0.00010794,2]
[347976985,1736257894939,-500.0,0.00010794,2]
[347976986,1736257894973,-4327.36,0.00010794,2]
[347976987,1736257895015,-509.39,0.00010794,2]
[347976988,1736257895049,-5697.12,0.00010794,2]
[347976989,1736257895087,-1101.82,0.00010794,2]
[347976990,1736257895123,-847.71,0.00010794,2]
[347976991,1736257895160,-10649.47,0.00010794,2]
[347976992,1736257895198,-500.0,0.00010794,2]
[347976993,1736257895236,-7713.54,0.00010794,2]
[347976994,1736257895272,-500.0,0.00010794,2]
[347976995,1736257895309,-500.0,0.00010794,2]
[347976996,1736257895345,-1882.84,0.00010794,2]
[347976997,1736257895382,-500.0,0.00010794,2]
[347976998,1736257895419,-1303.4,0.00010794,2]
[347976999,1736257895454,-298.92508854,0.00010794,2]
[347977000,1736257895488,-2682.17,0.00010794,2]
[347977001,1736257895523,-374.04551357,0.00010794,2]
[347977002,1736257895556,-1606.33,0.00010794,2]
[347977003,1736257895589,-500.0,0.00010794,2]
[347977004,1736257895623,-508.87,0.00010794,2]
[347977005,1736257895658,-1287.6,0.00010794,2]
[347977006,1736257895691,-860.63,0.00010794,2]
[347977007,1736257895728,-739.5,0.00010794,2]
[347977008,1736257895763,-4167.94,0.00010794,2]
[347977009,1736257895796,-500.0,0.00010794,2]
[347977010,1736257895829,-1466.53,0.00010794,2]
[347977011,1736257895862,-1825.6,0.00010795,2]
[347977012,1736257895896,-1424.24,0.00010795,2]
[347977013,1736257895929,-1247.98,0.00010795,2]
[347977014,1736257895962,-500.0,0.00010795,2]
[347977015,1736257895997,-678.64,0.00010795,2]
[347977016,1736257896031,-500.0,0.00010795,2]
[347977017,1736257896066,-500.0,0.00010795,2]
[347977018,1736257896101,-500.0,0.00010795,2]
[347977019,1736257896136,-500.0,0.00010795,2]
[347977020,1736257896168,-500.0,0.00010795,2]
[347977021,1736257896200,-872.16,0.00010795,2]
[347977022,1736257896232,-8485.5,0.00010795,2]
[347977023,1736257896264,-500.0,0.00010795,2]
[347977024,1736257896295,-500.0,0.00010795,2]
[347977025,1736257896327,-500.0,0.00010795,2]
[347977026,1736257896361,-500.0,0.00010795,2]
[347977027,1736257896396,-561.93350562,0.00010795,2]
[347977028,1736257896430,-500.0,0.00010795,2]
[347977029,1736257896463,-500.0,0.00010795,2]
[347977030,1736257896497,-559.81,0.00010795,2]
[347977031,1736257896530,-1782.85,0.00010795,2]
[347977032,1736257896563,-500.0,0.00010795,2]
[347977033,1736257896598,-500.0,0.00010795,2]
[347977034,1736257896632,-649.25285843,0.00010795,2]
[347977035,1736257896667,-500.0,0.00010795,2]
[347977036,1736257896699,-500.0,0.00010795,2]
[347977037,1736257896741,-500.0,0.00010795,2]
[347977038,1736257896777,-500.0,0.00010795,2]
[347977039,1736257896810,-549.62,0.00010795,2]
[347977040,1736257896842,-500.0,0.00010795,2]
[347977041,1736257896875,-500.0,0.00010795,2]
[347977042,1736257896909,-772.05,0.00010795,2]
[347977043,1736257896943,-500.0,0.00010795,2]
[347977044,1736257896976,-500.0,0.00010795,2]
[347977045,1736257897014,-571.7,0.00010795,2]
[347977046,1736257897047,-551.02,0.00010795,2]
[347977047,1736257897081,-500.0,0.00010795,2]
[347977048,1736257897117,-500.0,0.00010795,2]
[347977049,1736257897165,-661.6,0.00010795,2]
[347977050,1736257897201,-500.0,0.00010795,2]
[347977051,1736257897235,-500.0,0.00010795,2]
[347977052,1736257897271,-500.0,0.00010795,2]
[347977053,1736257897305,-593.96,0.00010795,2]
[347977054,1736257897339,-277.81301453,0.00010795,2]
[347977055,1736257897374,-520.45,0.00010795,2]
[347977056,1736257897409,-500.0,0.00010795,2]
[347977057,1736257897443,-500.0,0.00010795,2]
[347977058,1736257897477,-500.0,0.00010795,2]